[Event "European Online Club-ch-C 2021"]
[Site "Online"]
[Date "2021.03.27"]
[Round "5.17"]
[White "Vedmediuc, Serghei"]
[Black "Braun, Christian"]
[Result "1-0"]
[ECO "C11"]
[WhiteElo "2464"]
[BlackElo "2409"]
[Annotator "ChessBase"]
[PlyCount "69"]
[EventDate "2021.03.27"]
[EventType "team-tourn"]
[EventCountry "NET"]
[SourceTitle "playchess.com"]
[Source "ChessBase"]
[SourceQuality "1"]
[TimeControl "900+5"]

1. e4 {[%emt 0:02:29]} e6 {[%emt 0:00:08]} 2. d4 {[%emt 0:00:11]} d5 {[%emt 0:00:05]} 3. Nc3 {[%emt 0:00:59]} Nf6 {[%emt 0:00:15]} 4. e5 {[%emt 0:02:04]} Nfd7 {[%emt 0:00:05]} 5. f4 {[%emt 0:00:27]} c5 {[%emt 0:00:08]} 6. Nf3 {[%emt 0:00:29]} Nc6 {[%emt 0:00:14]} 7. Be3 {[%emt 0:00:35]} a6 {[%emt 0:00:03]} 8. Qd2 {[%emt 0:00:37]} Be7 {[%emt 0:00:03]} 9. dxc5 {[%emt 0:00:16]} Nxc5 {[%emt 0:00:03]} 10. Qf2 {[%emt 0:00:06]} Qa5 {[%emt 0:00:14]} 11. Bd3 {[%emt 0:00:28]} Na4 {[%emt 0:02:39]} 12. O-O {[%emt 0:00:23]} Nxb2 {[%emt 0:00:48]} 13. Ne2 {[%emt 0:00:29]} Nxd3 {[%emt 0:00:52]} 14. cxd3 {[%emt 0:00:03]} d4 {[%emt 0:00:07]} 15. Nexd4 {[%emt 0:00:12]} Nxd4 {[%emt 0:00:13]} 16. Nxd4 {[%emt 0:00:09]} O-O {[%emt 0:00:02]} 17. Nb3 {[%emt 0:00:09]} Qd5 {[%emt 0:00:19]} 18. Bc5 {[%emt 0:00:26]} Bxc5 {[%emt 0:00:42]} 19. Qxc5 {[%emt 0:00:19]} Qxc5+ {[%emt 0:01:54]} 20. Nxc5 {[%emt 0:00:05]} b6 {[%emt 0:00:00]} 21. Ne4 {[%emt 0:00:05]} Bb7 {[%emt 0:00:16]} 22. Nd6 {[%emt 0:00:04]} Bd5 {[%emt 0:00:01]} 23. a3 {[%emt 0:00:11]} f6 {[%emt 0:00:15]} 24. d4 {[%emt 0:00:14]} fxe5 {[%emt 0:00:11]} 25. dxe5 {[%emt 0:00:14]} b5 {[%emt 0:00:11]} 26. g3 {[%emt 0:00:17]} Rab8 {[%emt 0:00:51]} 27. Rab1 {[%emt 0:00:05]} h6 {[%emt 0:00:30]} 28. Kf2 {[%emt 0:00:23]} Rb6 {[%emt 0:00:12]} 29. Rfc1 {[%emt 0:00:06]} Rc6 {[%emt 0:00:18]} 30. Rxc6 {[%emt 0:00:06]} Bxc6 {[%emt 0:00:00]} 31. Ke3 {[%emt 0:00:10]} g5 {[%emt 0:00:24]} 32. h4 {[%emt 0:00:14]} Rb8 {[%emt 0:00:41]} 33. Kd4 {[%emt 0:00:19]} Bd7 {[%emt 0:00:52]} 34. fxg5 {[%emt 0:00:10]} hxg5 {[%emt 0:00:00]} 35. Ne4 {[%emt 0:00:13]} 1-0

[Event "European Online Club-ch-C 2021"]
[Site "Online"]
[Date "2021.03.27"]
[Round "5.18"]
[White "Lenaerts, Lennert"]
[Black "Le Goff, Ronan"]
[Result "1-0"]
[ECO "E20"]
[WhiteElo "2357"]
[BlackElo "2288"]
[Annotator "NA"]
[PlyCount "111"]
[EventDate "2021.03.27"]
[EventType "team-tourn"]
[EventCountry "NET"]
[SourceTitle "playchess.com"]
[Source "ChessBase"]
[SourceQuality "1"]
[TimeControl "900+5"]

1. d4 {[%emt 0:00:00]} Nf6 {[%emt 0:00:04]} 2. c4 {[%emt 0:00:02]} e6 {[%emt 0:00:02]} 3. Nc3 {[%emt 0:00:02]} Bb4 {[%emt 0:00:03]} 4. g3 {[%emt 0:00:02]} O-O {[%emt 0:00:35]} 5. Bg2 {[%emt 0:00:04]} Bxc3+ {[%emt 0:00:02]} 6. bxc3 {[%emt 0:00:10]} d6 {[%emt 0:00:08]} 7. Nf3 {[%emt 0:00:07]} Nc6 {[%emt 0:00:08]} 8. O-O {[%emt 0:00:33]} e5 {[%emt 0:00:14]} 9. c5 {[%emt 0:00:13]} e4 {[%emt 0:00:32]} 10. Nd2 {[%emt 0:00:21]} d5 {[%emt 0:01:56]} 11. e3 {[%emt 0:00:18]} Re8 {[%emt 0:01:03]} 12. c4 {[%emt 0:00:05]} dxc4 {[%emt 0:00:42]} 13. Nxc4 {[%emt 0:00:04]} Qd5 {[%emt 0:00:25]} 14. Nd2 {[%emt 0:00:23]} Bg4 {[%emt 0:01:47]} 15. Qb3 {[%emt 0:00:20]} Qd7 {[%emt 0:00:17]} 16. Bb2 {[%emt 0:01:32]} Bh3 {[%emt 0:01:25]} 17. f3 {[%emt 0:01:07]} exf3 {[%emt 0:00:40]} 18. Nxf3 {[%emt 0:00:09]} Bxg2 {[%emt 0:00:31]} 19. Kxg2 {[%emt 0:00:02]} Qd5 {[%emt 0:01:35]} 20. Rae1 {[%emt 0:00:38]} Re4 {[%emt 0:00:30]} 21. Bc1 {[%emt 0:01:48]} Rae8 {[%emt 0:00:51]} 22. Qxd5 {[%emt 0:02:43]} Nxd5 {[%emt 0:00:03]} 23. Ng5 {[%emt 0:00:02]} R4e7 {[%emt 0:01:05]} 24. e4 {[%emt 0:00:45]} Nxd4 {[%emt 0:01:10]} 25. Rd1 {[%emt 0:00:06]} Rxe4 {[%emt 0:00:04]} 26. Nxe4 {[%emt 0:00:07]} Rxe4 {[%emt 0:00:00]} 27. Rfe1 {[%emt 0:00:42]} Rxe1 {[%emt 0:00:11]} 28. Rxe1 {[%emt 0:00:04]} Ne6 {[%emt 0:00:07]} 29. Ba3 {[%emt 0:00:11]} c6 {[%emt 0:00:31]} 30. Rb1 {[%emt 0:00:17]} b5 {[%emt 0:00:08]} 31. cxb6 {[%emt 0:00:12]} axb6 {[%emt 0:00:02]} 32. Bd6 {[%emt 0:00:06]} f6 {[%emt 0:00:17]} 33. Rc1 {[%emt 0:00:48]} c5 {[%emt 0:00:13]} 34. Kf3 {[%emt 0:00:08]} Kf7 {[%emt 0:00:03]} 35. Ke4 {[%emt 0:00:16]} Nb4 {[%emt 0:00:10]} 36. a3 {[%emt 0:00:06]} Ng5+ {[%emt 0:00:04]} 37. Ke3 {[%emt 0:00:20]} Nd5+ {[%emt 0:00:02]} 38. Ke2 {[%emt 0:00:04]} Ke6 {[%emt 0:00:12]} 39. Bb8 {[%emt 0:00:06]} Kd7 {[%emt 0:00:13]} 40. h4 {[%emt 0:00:11]} Ne6 {[%emt 0:00:05]} 41. Kf3 {[%emt 0:00:17]} Kc6 {[%emt 0:00:04]} 42. h5 {[%emt 0:00:18]} g6 {[%emt 0:00:04]} 43. h6 {[%emt 0:00:26]} f5 {[%emt 0:00:05]} 44. Re1 {[%emt 0:00:14]} Nd4+ {[%emt 0:00:01]} 45. Kg2 {[%emt 0:00:03]} Kd7 {[%emt 0:00:04]} 46. Bf4 {[%emt 0:00:26]} Nc2 {[%emt 0:00:05]} 47. Re2 {[%emt 0:00:09]} Nxa3 {[%emt 0:00:06]} 48. Ra2 {[%emt 0:00:02]} Nb5 {[%emt 0:00:05]} 49. Ra8 {[%emt 0:00:10]} c4 {[%emt 0:00:08]} 50. Rh8 {[%emt 0:00:19]} c3 {[%emt 0:00:08]} 51. Rxh7+ {[%emt 0:00:03]} Ke6 {[%emt 0:00:02]} 52. Bc1 {[%emt 0:00:15]} Nd6 {[%emt 0:00:06]} 53. Rg7 {[%emt 0:00:12]} Kf6 {[%emt 0:00:02]} 54. Rg8 {[%emt 0:00:02]} b5 {[%emt 0:00:04]} 55. h7 {[%emt 0:00:03]} Nf7 {[%emt 0:00:02]} 56. Rf8 {[%emt 0:00:07]} 1-0

[Event "European Online Club-ch-C 2021"]
[Site "Online"]
[Date "2021.03.27"]
[Round "5.19"]
[White "Bouget, Alexandre"]
[Black "Van Meegen, Ruud"]
[Result "1-0"]
[ECO "E46"]
[WhiteElo "2247"]
[BlackElo "2295"]
[Annotator "NA"]
[PlyCount "97"]
[EventDate "2021.03.27"]
[EventType "team-tourn"]
[EventCountry "NET"]
[SourceTitle "playchess.com"]
[Source "ChessBase"]
[SourceQuality "1"]
[TimeControl "900+5"]

1. d4 {[%emt 0:00:00]} Nf6 {[%emt 0:00:04]} 2. c4 {[%emt 0:00:03]} e6 {[%emt 0:00:01]} 3. Nc3 {[%emt 0:00:03]} Bb4 {[%emt 0:00:03]} 4. e3 {[%emt 0:00:02]} O-O {[%emt 0:00:03]} 5. Bd2 {[%emt 0:00:02]} d5 {[%emt 0:00:11]} 6. cxd5 {[%emt 0:00:03]} exd5 {[%emt 0:00:05]} 7. Bd3 {[%emt 0:00:00]} Re8 {[%emt 0:01:04]} 8. Nf3 {[%emt 0:00:04]} Nbd7 {[%emt 0:00:14]} 9. O-O {[%emt 0:00:03]} c6 {[%emt 0:00:13]} 10. Qc2 {[%emt 0:00:13]} Bd6 {[%emt 0:00:10]} 11. Rab1 {[%emt 0:00:46]} Nf8 {[%emt 0:01:13]} 12. b4 {[%emt 0:00:06]} Bg4 {[%emt 0:00:03]} 13. Ne1 {[%emt 0:00:40]} a6 {[%emt 0:00:57]} 14. h3 {[%emt 0:00:04]} Bh5 {[%emt 0:00:07]} 15. f4 {[%emt 0:00:15]} Ne4 {[%emt 0:02:07]} 16. Nxe4 {[%emt 0:03:09]} dxe4 {[%emt 0:00:00]} 17. Bxe4 {[%emt 0:00:03]} f6 {[%emt 0:03:56]} 18. Nf3 {[%emt 0:01:31]} Bf7 {[%emt 0:00:27]} 19. Bd3 {[%emt 0:00:18]} Bc7 {[%emt 0:01:27]} 20. Rbd1 {[%emt 0:00:28]} Qd7 {[%emt 0:00:33]} 21. Rfe1 {[%emt 0:01:21]} Rad8 {[%emt 0:00:38]} 22. a4 {[%emt 0:00:06]} Kh8 {[%emt 0:01:08]} 23. Rb1 {[%emt 0:00:05]} Ra8 {[%emt 0:00:07]} 24. Rb2 {[%emt 0:00:52]} Bg6 {[%emt 0:00:22]} 25. Bxg6 {[%emt 0:00:47]} Nxg6 {[%emt 0:00:02]} 26. b5 {[%emt 0:00:35]} axb5 {[%emt 0:00:55]} 27. axb5 {[%emt 0:00:00]} cxb5 {[%emt 0:00:01]} 28. Qd3 {[%emt 0:00:32]} Ba5 {[%emt 0:00:11]} 29. Bxa5 {[%emt 0:03:23]} Rxa5 {[%emt 0:00:00]} 30. Reb1 {[%emt 0:00:05]} Qe7 {[%emt 0:00:15]} 31. f5 {[%emt 0:00:35]} Nf8 {[%emt 0:00:04]} 32. Kf2 {[%emt 0:00:17]} Ra3 {[%emt 0:00:05]} 33. Rb3 {[%emt 0:00:03]} b4 {[%emt 0:00:19]} 34. Qc4 {[%emt 0:00:20]} Nd7 {[%emt 0:00:27]} 35. Qxb4 {[%emt 0:00:38]} Qxb4 {[%emt 0:00:03]} 36. Rxb4 {[%emt 0:00:00]} Raxe3 {[%emt 0:00:03]} 37. Rxb7 {[%emt 0:00:02]} Nf8 {[%emt 0:00:08]} 38. Rb8 {[%emt 0:00:05]} R3e7 {[%emt 0:00:02]} 39. Rxe8 {[%emt 0:00:03]} Rxe8 {[%emt 0:00:02]} 40. Rb7 {[%emt 0:00:01]} Kg8 {[%emt 0:00:07]} 41. g4 {[%emt 0:00:12]} Rd8 {[%emt 0:00:10]} 42. Ke3 {[%emt 0:00:04]} Nd7 {[%emt 0:00:02]} 43. Nd2 {[%emt 0:00:07]} Kf8 {[%emt 0:00:03]} 44. Ne4 {[%emt 0:00:04]} Ke8 {[%emt 0:00:07]} 45. Nc5 {[%emt 0:00:04]} Ke7 {[%emt 0:00:15]} 46. Ke4 {[%emt 0:00:07]} Kd6 {[%emt 0:00:06]} 47. Rxd7+ {[%emt 0:00:06]} Rxd7 {[%emt 0:00:00]} 48. Nxd7 {[%emt 0:00:00]} Kxd7 {[%emt 0:00:00]} 49. Kd5 {[%emt 0:00:02]} 1-0

[Event "European Online Club-ch-C 2021"]
[Site "Online"]
[Date "2021.03.27"]
[Round "5.20"]
[White "De Mon, Gino"]
[Black "Lahoche, Dorian"]
[Result "1/2-1/2"]
[ECO "E61"]
[WhiteElo "2060"]
[BlackElo "2124"]
[Annotator "NA"]
[PlyCount "128"]
[EventDate "2021.03.27"]
[EventType "team-tourn"]
[EventCountry "NET"]
[SourceTitle "playchess.com"]
[Source "ChessBase"]
[SourceQuality "1"]
[TimeControl "900+5"]

1. d4 {[%emt 0:00:00]} Nf6 {[%emt 0:00:03]} 2. c4 {[%emt 0:00:02]} g6 {[%emt 0:00:01]} 3. Nf3 {[%emt 0:00:36]} Bg7 {[%emt 0:00:02]} 4. Bf4 {[%emt 0:00:02]} O-O {[%emt 0:00:05]} 5. e3 {[%emt 0:00:01]} d6 {[%emt 0:00:02]} 6. h3 {[%emt 0:00:02]} Nbd7 {[%emt 0:00:08]} 7. Nc3 {[%emt 0:00:11]} b6 {[%emt 0:00:13]} 8. Be2 {[%emt 0:00:35]} Bb7 {[%emt 0:00:24]} 9. O-O {[%emt 0:00:02]} Re8 {[%emt 0:00:04]} 10. Bh2 {[%emt 0:00:26]} e5 {[%emt 0:00:11]} 11. d5 {[%emt 0:00:25]} Nc5 {[%emt 0:02:26]} 12. Qc2 {[%emt 0:00:03]} a5 {[%emt 0:00:14]} 13. b3 {[%emt 0:00:03]} c6 {[%emt 0:00:16]} 14. dxc6 {[%emt 0:02:56]} Bxc6 {[%emt 0:00:00]} 15. Rad1 {[%emt 0:00:01]} Qe7 {[%emt 0:01:04]} 16. Rfe1 {[%emt 0:02:17]} Red8 {[%emt 0:01:47]} 17. Nd5 {[%emt 0:00:50]} Nxd5 {[%emt 0:01:10]} 18. cxd5 {[%emt 0:00:00]} Bb7 {[%emt 0:00:03]} 19. Bb5 {[%emt 0:02:34]} Rdc8 {[%emt 0:00:28]} 20. Qe2 {[%emt 0:00:03]} Ne4 {[%emt 0:00:21]} 21. Bc6 {[%emt 0:01:15]} Nc3 {[%emt 0:01:03]} 22. Qc4 {[%emt 0:00:30]} Nxd1 {[%emt 0:00:09]} 23. Rxd1 {[%emt 0:00:00]} Ba6 {[%emt 0:01:32]} 24. Qa4 {[%emt 0:01:39]} Rab8 {[%emt 0:00:36]} 25. Nd2 {[%emt 0:00:18]} Qd8 {[%emt 0:01:05]} 26. Rc1 {[%emt 0:00:44]} b5 {[%emt 0:00:14]} 27. Qg4 {[%emt 0:00:23]} f5 {[%emt 0:00:32]} 28. Qd1 {[%emt 0:00:04]} Rc7 {[%emt 0:00:37]} 29. g4 {[%emt 0:00:05]} fxg4 {[%emt 0:00:23]} 30. hxg4 {[%emt 0:00:00]} Rbc8 {[%emt 0:00:13]} 31. Bg3 {[%emt 0:00:39]} Bb7 {[%emt 0:00:13]} 32. Qf3 {[%emt 0:00:02]} Bxc6 {[%emt 0:00:38]} 33. dxc6 {[%emt 0:00:00]} d5 {[%emt 0:00:08]} 34. Qe2 {[%emt 0:00:01]} Rxc6 {[%emt 0:00:43]} 35. Rxc6 {[%emt 0:00:00]} Rxc6 {[%emt 0:00:02]} 36. Qxb5 {[%emt 0:00:01]} Rc2 {[%emt 0:00:27]} 37. Nf3 {[%emt 0:00:12]} Rxa2 {[%emt 0:00:16]} 38. Bxe5 {[%emt 0:00:16]} Bxe5 {[%emt 0:00:03]} 39. Nxe5 {[%emt 0:00:00]} Rd2 {[%emt 0:00:06]} 40. Qc6 {[%emt 0:00:07]} Qe7 {[%emt 0:00:07]} 41. f4 {[%emt 0:00:27]} d4 {[%emt 0:00:05]} 42. Qc4+ {[%emt 0:00:03]} Kg7 {[%emt 0:00:04]} 43. exd4 {[%emt 0:00:04]} Qb7 {[%emt 0:00:03]} 44. Nc6 {[%emt 0:00:19]} Qd7 {[%emt 0:00:08]} 45. f5 {[%emt 0:00:17]} gxf5 {[%emt 0:00:00]} 46. g5 {[%emt 0:00:06]} f4 {[%emt 0:00:02]} 47. Ne5 {[%emt 0:00:04]} Qxd4+ {[%emt 0:00:03]} 48. Qxd4 {[%emt 0:00:03]} Rxd4 {[%emt 0:00:00]} 49. Nc6 {[%emt 0:00:03]} Rd5 {[%emt 0:00:16]} 50. Kf2 {[%emt 0:00:08]} Rxg5 {[%emt 0:00:03]} 51. Nd4 {[%emt 0:00:03]} Re5 {[%emt 0:00:14]} 52. Kf3 {[%emt 0:00:02]} Re3+ {[%emt 0:00:07]} 53. Kxf4 {[%emt 0:00:01]} Rd3 {[%emt 0:00:03]} 54. Ne6+ {[%emt 0:00:05]} Kf6 {[%emt 0:00:04]} 55. Nc5 {[%emt 0:00:00]} Rc3 {[%emt 0:00:02]} 56. Ne4+ {[%emt 0:00:01]} Ke6 {[%emt 0:00:02]} 57. Nxc3 {[%emt 0:00:00]} Kd6 {[%emt 0:00:02]} 58. Ke4 {[%emt 0:00:11]} Kc5 {[%emt 0:00:01]} 59. Kd3 {[%emt 0:00:03]} Kb4 {[%emt 0:00:02]} 60. Kc2 {[%emt 0:00:01]} h5 {[%emt 0:00:03]} 61. Nd5+ {[%emt 0:00:02]} Kb5 {[%emt 0:00:02]} 62. Kc3 {[%emt 0:00:03]} h4 {[%emt 0:00:10]} 63. Nf4 {[%emt 0:00:04]} a4 {[%emt 0:00:02]} 64. bxa4+ {[%emt 0:00:00]} Kxa4 {[%emt 0:00:02]} 1/2-1/2

[Event "European Online Club-ch-C 2021"]
[Site "Online"]
[Date "2021.03.27"]
[Round "6.1"]
[White "Sahin, Ozgun"]
[Black "Lenaerts, Lennert"]
[Result "0-1"]
[ECO "C45"]
[WhiteElo "2281"]
[BlackElo "2357"]
[Annotator "NA"]
[PlyCount "146"]
[EventDate "2021.03.27"]
[EventType "team-tourn"]
[EventCountry "NET"]
[SourceTitle "playchess.com"]
[Source "ChessBase"]
[SourceQuality "1"]
[TimeControl "900+5"]

1. e4 {[%emt 0:00:00]} e5 {[%emt 0:00:02]} 2. Nf3 {[%emt 0:00:02]} Nc6 {[%emt 0:00:02]} 3. d4 {[%emt 0:00:02]} exd4 {[%emt 0:00:02]} 4. Nxd4 {[%emt 0:00:02]} Nf6 {[%emt 0:00:03]} 5. Nxc6 {[%emt 0:00:03]} bxc6 {[%emt 0:00:01]} 6. Nd2 {[%emt 0:00:03]} d5 {[%emt 0:00:24]} 7. exd5 {[%emt 0:00:04]} cxd5 {[%emt 0:00:05]} 8. Bb5+ {[%emt 0:00:03]} Bd7 {[%emt 0:00:03]} 9. Bxd7+ {[%emt 0:00:02]} Qxd7 {[%emt 0:00:04]} 10. O-O {[%emt 0:00:02]} Be7 {[%emt 0:00:03]} 11. Re1 {[%emt 0:00:12]} O-O {[%emt 0:00:02]} 12. b3 {[%emt 0:00:01]} a5 {[%emt 0:01:35]} 13. a4 {[%emt 0:01:34]} Bb4 {[%emt 0:00:05]} 14. Bb2 {[%emt 0:00:49]} Qd6 {[%emt 0:00:14]} 15. Be5 {[%emt 0:00:47]} Qb6 {[%emt 0:00:21]} 16. c3 {[%emt 0:00:59]} Bc5 {[%emt 0:00:33]} 17. Qf3 {[%emt 0:00:04]} Rfe8 {[%emt 0:00:20]} 18. Nf1 {[%emt 0:00:55]} Bxf2+ {[%emt 0:00:21]} 19. Qxf2 {[%emt 0:00:10]} Qxf2+ {[%emt 0:00:03]} 20. Kxf2 {[%emt 0:00:03]} Rxe5 {[%emt 0:00:04]} 21. Rxe5 {[%emt 0:00:35]} Ng4+ {[%emt 0:00:04]} 22. Kg3 {[%emt 0:00:15]} Nxe5 {[%emt 0:00:02]} 23. Ne3 {[%emt 0:00:08]} c6 {[%emt 0:00:09]} 24. b4 {[%emt 0:00:21]} Rb8 {[%emt 0:01:13]} 25. b5 {[%emt 0:02:21]} cxb5 {[%emt 0:00:28]} 26. Nxd5 {[%emt 0:00:04]} b4 {[%emt 0:01:27]} 27. cxb4 {[%emt 0:00:06]} axb4 {[%emt 0:00:02]} 28. a5 {[%emt 0:00:38]} b3 {[%emt 0:00:03]} 29. a6 {[%emt 0:00:12]} b2 {[%emt 0:02:40]} 30. Rb1 {[%emt 0:00:06]} Nc4 {[%emt 0:00:04]} 31. a7 {[%emt 0:01:04]} Ra8 {[%emt 0:00:30]} 32. Ne3 {[%emt 0:00:05]} Ne5 {[%emt 0:01:12]} 33. Rxb2 {[%emt 0:01:04]} Nc6 {[%emt 0:00:03]} 34. Rb6 {[%emt 0:00:46]} Nxa7 {[%emt 0:00:09]} 35. Ra6 {[%emt 0:00:03]} Re8 {[%emt 0:00:05]} 36. Nd5 {[%emt 0:01:07]} Nc8 {[%emt 0:00:14]} 37. Nc7 {[%emt 0:00:22]} Rf8 {[%emt 0:00:09]} 38. Nd5 {[%emt 0:00:03]} g6 {[%emt 0:00:45]} 39. Rc6 {[%emt 0:00:21]} Kg7 {[%emt 0:00:11]} 40. h3 {[%emt 0:00:32]} Rd8 {[%emt 0:00:09]} 41. Ne3 {[%emt 0:00:11]} Nd6 {[%emt 0:00:07]} 42. Kf3 {[%emt 0:00:06]} Ne8 {[%emt 0:00:12]} 43. Ng4 {[%emt 0:00:11]} Rd5 {[%emt 0:00:30]} 44. Ne3 {[%emt 0:00:05]} Rb5 {[%emt 0:00:10]} 45. Nc4 {[%emt 0:00:10]} Nf6 {[%emt 0:00:20]} 46. Rc7 {[%emt 0:00:09]} Rb3+ {[%emt 0:00:12]} 47. Kf2 {[%emt 0:00:14]} Rc3 {[%emt 0:00:06]} 48. Ke2 {[%emt 0:00:52]} Nd5 {[%emt 0:01:14]} 49. Rc6 {[%emt 0:00:09]} Ne3 {[%emt 0:00:29]} 50. Ne5 {[%emt 0:00:12]} Rxc6 {[%emt 0:00:03]} 51. Nxc6 {[%emt 0:00:03]} Nxg2 {[%emt 0:00:03]} 52. Kf3 {[%emt 0:00:04]} Nh4+ {[%emt 0:00:02]} 53. Kg3 {[%emt 0:00:05]} Nf5+ {[%emt 0:00:04]} 54. Kf2 {[%emt 0:00:03]} Kf6 {[%emt 0:00:03]} 55. Nd8 {[%emt 0:00:11]} h5 {[%emt 0:00:10]} 56. Kf3 {[%emt 0:00:08]} Nd4+ {[%emt 0:00:12]} 57. Kg3 {[%emt 0:00:08]} g5 {[%emt 0:00:17]} 58. Nb7 {[%emt 0:00:16]} Ke5 {[%emt 0:00:08]} 59. Nc5 {[%emt 0:00:04]} f5 {[%emt 0:00:37]} 60. Nd7+ {[%emt 0:00:03]} Ke6 {[%emt 0:00:09]} 61. Nc5+ {[%emt 0:00:02]} Kd5 {[%emt 0:00:06]} 62. Nd7 {[%emt 0:00:01]} f4+ {[%emt 0:00:02]} 63. Kg2 {[%emt 0:00:04]} Ke6 {[%emt 0:00:03]} 64. Nc5+ {[%emt 0:00:01]} Kf5 {[%emt 0:00:02]} 65. Nd3 {[%emt 0:00:08]} g4 {[%emt 0:00:03]} 66. hxg4+ {[%emt 0:00:02]} hxg4 {[%emt 0:00:02]} 67. Kf2 {[%emt 0:00:03]} Ne6 {[%emt 0:00:05]} 68. Kg2 {[%emt 0:00:05]} Ng5 {[%emt 0:00:03]} 69. Kf2 {[%emt 0:00:10]} Ne4+ {[%emt 0:00:05]} 70. Kg2 {[%emt 0:00:02]} f3+ {[%emt 0:00:04]} 71. Kf1 {[%emt 0:00:05]} g3 {[%emt 0:00:06]} 72. Kg1 {[%emt 0:00:03]} Ng5 {[%emt 0:00:04]} 73. Kf1 {[%emt 0:00:05]} g2+ {[%emt 0:00:05]} 0-1

[Event "European Online Club-ch-C 2021"]
[Site "Online"]
[Date "2021.03.27"]
[Round "6.2"]
[White "Van Meegen, Ruud"]
[Black "Okuyaz, Duru"]
[Result "1/2-1/2"]
[ECO "D14"]
[WhiteElo "2295"]
[BlackElo "2076"]
[Annotator "NA"]
[PlyCount "162"]
[EventDate "2021.03.27"]
[EventType "team-tourn"]
[EventCountry "NET"]
[SourceTitle "playchess.com"]
[Source "ChessBase"]
[SourceQuality "1"]
[TimeControl "900+5"]

1. d4 {[%emt 0:00:00]} d5 {[%emt 0:00:02]} 2. c4 {[%emt 0:00:02]} c6 {[%emt 0:00:02]} 3. Nc3 {[%emt 0:00:07]} Nf6 {[%emt 0:00:02]} 4. cxd5 {[%emt 0:00:02]} cxd5 {[%emt 0:00:02]} 5. Bf4 {[%emt 0:00:02]} Nc6 {[%emt 0:00:02]} 6. e3 {[%emt 0:00:01]} Bf5 {[%emt 0:00:01]} 7. Nf3 {[%emt 0:00:23]} e6 {[%emt 0:00:02]} 8. Qb3 {[%emt 0:00:15]} Bb4 {[%emt 0:00:04]} 9. Be2 {[%emt 0:00:40]} O-O {[%emt 0:00:40]} 10. O-O {[%emt 0:00:09]} Bxc3 {[%emt 0:00:14]} 11. Qxc3 {[%emt 0:00:12]} a6 {[%emt 0:00:28]} 12. Rfc1 {[%emt 0:00:09]} Rc8 {[%emt 0:00:12]} 13. Qa3 {[%emt 0:00:24]} Ne4 {[%emt 0:00:43]} 14. h3 {[%emt 0:03:41]} Qb6 {[%emt 0:00:43]} 15. Ne5 {[%emt 0:04:37]} Rfd8 {[%emt 0:03:41]} 16. Nd3 {[%emt 0:00:40]} g5 {[%emt 0:03:28]} 17. Bh2 {[%emt 0:00:08]} Nd2 {[%emt 0:01:03]} 18. Nc5 {[%emt 0:00:40]} Nb4 {[%emt 0:00:57]} 19. Qc3 {[%emt 0:04:02]} Ne4 {[%emt 0:00:27]} 20. Qb3 {[%emt 0:00:12]} Nd2 {[%emt 0:02:29]} 21. Qd1 {[%emt 0:00:03]} Ne4 {[%emt 0:00:18]} 22. a3 {[%emt 0:00:02]} Nc6 {[%emt 0:00:11]} 23. b4 {[%emt 0:00:02]} Nd6 {[%emt 0:00:29]} 24. Qb3 {[%emt 0:00:11]} Qa7 {[%emt 0:00:16]} 25. Rc3 {[%emt 0:00:05]} b5 {[%emt 0:00:08]} 26. Rac1 {[%emt 0:00:05]} Nc4 {[%emt 0:00:02]} 27. a4 {[%emt 0:00:07]} Qb6 {[%emt 0:00:04]} 28. a5 {[%emt 0:00:05]} Qa7 {[%emt 0:00:02]} 29. Bxc4 {[%emt 0:00:09]} dxc4 {[%emt 0:00:01]} 30. Qd1 {[%emt 0:00:02]} e5 {[%emt 0:00:02]} 31. Qf3 {[%emt 0:00:04]} exd4 {[%emt 0:00:14]} 32. exd4 {[%emt 0:00:06]} Nxd4 {[%emt 0:00:02]} 33. Qe3 {[%emt 0:00:03]} Bg6 {[%emt 0:00:08]} 34. Kh1 {[%emt 0:00:05]} h6 {[%emt 0:00:01]} 35. Qe5 {[%emt 0:00:09]} Qc7 {[%emt 0:00:04]} 36. Re3 {[%emt 0:00:06]} Qxe5 {[%emt 0:00:04]} 37. Rxe5 {[%emt 0:00:00]} Nb3 {[%emt 0:00:04]} 38. Rce1 {[%emt 0:00:05]} Nxc5 {[%emt 0:00:03]} 39. Rxc5 {[%emt 0:00:03]} Rxc5 {[%emt 0:00:02]} 40. bxc5 {[%emt 0:00:00]} Rc8 {[%emt 0:00:01]} 41. Bd6 {[%emt 0:00:03]} c3 {[%emt 0:00:01]} 42. Rc1 {[%emt 0:00:02]} b4 {[%emt 0:00:01]} 43. c6 {[%emt 0:00:02]} c2 {[%emt 0:00:04]} 44. Bxb4 {[%emt 0:00:03]} Rxc6 {[%emt 0:00:02]} 45. Kh2 {[%emt 0:00:03]} Rc4 {[%emt 0:00:02]} 46. Bd2 {[%emt 0:00:01]} Kf8 {[%emt 0:00:02]} 47. g3 {[%emt 0:00:03]} Ke7 {[%emt 0:00:02]} 48. Be3 {[%emt 0:00:03]} Kd6 {[%emt 0:00:03]} 49. Kg2 {[%emt 0:00:02]} Kc6 {[%emt 0:00:03]} 50. Kf3 {[%emt 0:00:03]} Kb5 {[%emt 0:00:02]} 51. Bd2 {[%emt 0:00:03]} Ka4 {[%emt 0:00:05]} 52. Ke2 {[%emt 0:00:09]} Kb3 {[%emt 0:00:04]} 53. Be3 {[%emt 0:00:08]} Ra4 {[%emt 0:00:02]} 54. Bd2 {[%emt 0:00:04]} f5 {[%emt 0:00:03]} 55. f3 {[%emt 0:00:23]} g4 {[%emt 0:00:04]} 56. hxg4 {[%emt 0:00:04]} fxg4 {[%emt 0:00:02]} 57. fxg4 {[%emt 0:00:01]} Rxg4 {[%emt 0:00:04]} 58. Bf4 {[%emt 0:00:06]} h5 {[%emt 0:00:05]} 59. Rh1 {[%emt 0:00:19]} Kb2 {[%emt 0:00:23]} 60. Be5+ {[%emt 0:00:13]} Kb3 {[%emt 0:00:05]} 61. Bf4 {[%emt 0:00:02]} Bf7 {[%emt 0:00:02]} 62. Kd2 {[%emt 0:00:02]} Rg8 {[%emt 0:00:04]} 63. Kc1 {[%emt 0:00:04]} Rb8 {[%emt 0:00:05]} 64. Re1 {[%emt 0:00:03]} Rb5 {[%emt 0:00:05]} 65. Re3+ {[%emt 0:00:03]} Kc4 {[%emt 0:00:06]} 66. Kxc2 {[%emt 0:00:04]} Bg6+ {[%emt 0:00:01]} 67. Kc1 {[%emt 0:00:04]} Rxa5 {[%emt 0:00:04]} 68. Be5 {[%emt 0:00:09]} Rb5 {[%emt 0:00:05]} 69. Rc3+ {[%emt 0:00:06]} Kd5 {[%emt 0:00:02]} 70. Bf4 {[%emt 0:00:02]} a5 {[%emt 0:00:06]} 71. Ra3 {[%emt 0:00:10]} Kc4 {[%emt 0:00:10]} 72. Kd2 {[%emt 0:00:04]} Rb2+ {[%emt 0:00:05]} 73. Ke3 {[%emt 0:00:03]} Rb3+ {[%emt 0:00:08]} 74. Rxb3 {[%emt 0:00:02]} Kxb3 {[%emt 0:00:01]} 75. Kd2 {[%emt 0:00:08]} a4 {[%emt 0:00:02]} 76. Kc1 {[%emt 0:00:04]} a3 {[%emt 0:00:02]} 77. Bd6 {[%emt 0:00:04]} a2 {[%emt 0:00:15]} 78. Be5 {[%emt 0:00:02]} Kc4 {[%emt 0:00:12]} 79. Kb2 {[%emt 0:00:03]} Bb1 {[%emt 0:00:05]} 80. Bb8 {[%emt 0:00:02]} Kd3 {[%emt 0:00:03]} 81. Ka1 {[%emt 0:00:03]} Ke2 {[%emt 0:00:06]} 1/2-1/2